{"text_format":"1","workbook":"xlsx","n_sheets":12,"sheets":["Start","Wymagania_Wybór opak","Requirements_Selection","Opak. komp. łącznych","Packaging CC","Beczki_chemia","Barrels","Kartony","Cartons","Szpule","Reels","Przykład_Example"],"not_rendered":{"charts":0,"images":5,"macros":1,"external_links":0,"defined_names":0,"comments":0,"pivot_tables":0},"unopened":[],"bounds":{"document_bytes":16777216,"sheet_cells":100000,"rows_first":2000,"rows_last":500,"rows_between":2000,"halvings":0,"cell_chars":16384,"cell_head_chars":4096},"cells_cut":0,"cells_raw":0,"read":"whole","date_system":"1900"}

{"sheet":"Start","index":0,"n_rows":26,"n_cols":3,"rows_kept":26,"cut":false,"hidden":false,"merged":[[2,2,5,14],[25,2,28,14]]}
[]
[]
[null,null,"INSTRUKCJA PAKOWANIA/\nSUPPLIER PACKAGING INFORMATION"]
[]
[]
[]
[]
[]
[]
[]
[]
[]
[]
[]
[]
[]
[]
[]
[]
[]
[]
[]
[]
[]
[]
[null,null,"REKOMENDACJE Z ZAKRESU OCHRONY ŚRODOWISKA DLA OPAKOWAŃ/\nENVIRONMENTAL PROTECTION RECOMMENDATIONS FOR PACKAGING"]

{"sheet":"Wymagania_Wybór opak","index":1,"n_rows":0,"n_cols":0,"rows_kept":0,"cut":false,"hidden":true,"merged":[]}

{"sheet":"Requirements_Selection","index":2,"n_rows":0,"n_cols":0,"rows_kept":0,"cut":false,"hidden":true,"merged":[]}

{"sheet":"Opak. komp. łącznych","index":3,"n_rows":53,"n_cols":36,"rows_kept":53,"cut":false,"hidden":true,"merged":[[45,7,45,14],[45,3,45,6],[46,7,49,14],[46,3,46,6],[47,3,47,6],[48,3,48,6],[49,3,49,6],[53,7,69,14],[52,3,52,6],[52,7,52,14],[53,2,69,2],[53,3,69,6],[2,2,3,13],[12,7,12,13],[11,7,11,13],[6,2,7,2],[6,3,7,4],[6,6,6,7],[5,3,5,4],[8,3,8,4],[11,3,11,4],[12,3,12,4],[14,7,14,13],[43,7,43,14],[41,7,42,14],[9,3,9,4],[5,6,5,7],[13,7,13,13],[13,3,13,4],[14,3,14,4],[16,2,17,14],[31,7,31,14],[40,7,40,14],[32,7,39,14],[29,2,29,5],[10,3,10,4]]}
[]
[]
[null,null,"INFORMACJE OGÓLNE"]
[]
[null,null,null,null,null,null,null,null,null,null,null,null,null,null,null,null,null,null,null,null,null,null,null,null,null,null,null,null,null,null,null,null,"."]
[null,null,"Nazwa dostawcy",null,null,null,"Data wystawienia"]
[null,null,"Adres dostawcy",null,null,null,null,null,null,null,null,null,null,null,null,null,null,null,null,null,null,null,null,null,null,null,null,null,null,null,null,null,"Niedozwolone",null,"Brak"]
[null,null,null,null,null,null,null,null,null,null,null,null,null,null,null,null,null,null,null,null,null,null,null,null,null,null,null,null,null,null,null,null,"Dozwolone","Karton","Karton"]
[null,null,"E-mail",null,null,null,null,null,null,null,null,null,null,null,null,null,null,null,null,null,null,null,null,null,null,null,null,null,null,null,null,null,1,"Worek","Worek"]
[null,null,"Numer części dostawcy",null,null,null,null,null,null,null,null,null,null,null,null,null,null,null,null,null,null,null,null,null,null,null,null,null,null,null,null,null,2,"Chep pojemnik","Chep pojemnik"]
[null,null,"Nazwa części dostawcy ",null,null,null,"Legenda ",null,null,null,null,null,null,null,null,null,null,null,null,null,null,null,null,null,null,null,null,null,null,null,null,null,3,"Inne","Paleta EUR 1 (800mm x 1200mm)","800mm x 1200mm"]
[null,null,"Numer EAN komponentu u Dostawcy ",null,null,null,null,"Pole do uzupełnienia obligatoryjnie",null,null,null,null,null,null,null,null,null,null,null,null,null,null,null,null,null,null,null,null,null,null,null,null,4,null,"Inny rodzaj palety","1,200mm x 1,000mm"]
[null,null,"Numer ERP części SMA",null,null,null,null,"Pole do uzupełnienia opcjonalnie",null,null,null,null,null,null,null,null,null,null,null,null,null,null,null,null,null,null,null,null,null,null,null,null,5,null,"Brak palety","1,000mm x 1,200mm"]
[null,null,"Nazwa części SMA",null,null,null,null,"Pole uzupełniane automatycznie/brak konieczności uzupełnienia",null,null,null,null,null,null,null,null,null,null,null,null,null,null,null,null,null,null,null,null,null,null,null,null,6,null,null,"800mm x 600mm"]
[null,null,"Numer EAN  komponentu w SMA",null,null,null,null,"Pole informacyjne",null,null,null,null,null,null,null,null,null,null,null,null,null,null,null,null,null,null,null,null,null,null,null,null,7,null,null,"Inny rodzaj"]
[null,null,null,null,null,null,null,null,null,null,null,null,null,null,null,null,null,null,null,null,null,null,null,null,null,null,null,null,null,null,null,null,8,null,null,"Brak palety"]
[null,null,"INFORMACJE DOTYCZĄCE SPOSOBU PAKOWANIA",null,null,null,null,null,null,null,null,null,null,null,null,null,null,null,null,null,null,null,null,null,null,null,null,null,null,null,null,null,9]
[null,null,null,null,null,null,null,null,null,null,null,null,null,null,null,null,null,null,null,null,null,null,null,null,null,null,null,null,null,null,null,null,null,null,"Brak   "]
[null,null,null,null,null,null,null,null,null,null,null,null,null,null,null,null,null,null,null,null,null,null,null,null,null,null,null,null,null,null,null,null,"Folia stretch","g","Karton"]
[null,null,null,null,null,null,null,null,null,null,null,null,null,null,null,null,null,null,null,null,null,null,null,null,null,null,null,null,null,null,null,null,"Taśma spinająca","kg","Worek"]
[null,null,null,null,null,null,null,null,null,null,null,null,null,null,null,null,null,null,null,null,null,null,null,null,null,null,null,null,null,null,null,null,"Karton zbiorczy",null,"Inne"]
[null,null,null,null,null,null,null,null,null,null,null,null,null,null,null,null,null,null,null,null,null,null,null,null,null,null,null,null,null,null,null,null,"Karton zbiorczy + Folia","cm"]
[null,null,null,null,null,null,null,null,null,null,null,null,null,null,null,null,null,null,null,null,null,null,null,null,null,null,null,null,null,null,null,null,"Karton zbiorczy + Folia + Taśma","m",25]
[null,null,null,null,null,null,null,null,null,null,null,null,null,null,null,null,null,null,null,null,null,null,null,null,null,null,null,null,null,null,null,null,"Folia + Taśma",null,28]
[null,null,null,null,null,null,null,null,null,null,null,null,null,null,null,null,null,null,null,null,null,null,null,null,null,null,null,null,null,null,null,null,"Karton zbiorczy + Taśma",null,12]
[null,null,null,null,null,null,null,null,null,null,null,null,null,null,null,null,null,null,null,null,null,null,null,null,null,null,null,null,null,null,null,null,"Inny rodzaj zabezpieczenia",null,0]
[null,null,null,null,null,null,null,null,null,null,null,null,null,null,null,null,null,null,null,null,null,null,null,null,null,null,null,null,null,null,null,null,null,null,"Inne"]
[]
[]
[null,null,"Ilość komponentów, dla której sporządzana jest poniższa instrukcja (ilość komponentów zamawiana w jednej dostawie = MDQ)"]
[]
[null,null,null,"OPAKOWANIE GŁÓWNE","OPAKOWANIE POMOCNICZE","OPAKOWANIE ZBIORCZE","J.m.","DODATKOWE KOMENTARZE"]
[null,null,"Waga pojedynczego komponentu"]
[null,null,"Ilość komponentów w 1 opakowaniu",null,{"$f":"D34*D36","v":0},{"$f":"E37*E34","v":0},"szt."]
[null,null,"Waga 1 opakowania wraz z komponentami ",null,null,null,"kg"]
[null,null,"Ilość opakowań głównych w 1 opakowaniu pomocniczym"]
[null,null,"Ilość opakowań pomocniczych na/ w 1 opakowaniu zbiorczym"]
[null,null,"Rodzaj opakowania"]
[null,null,"Wymiary opakowania (dł x szer x wys)"]
[null,null,"Waga palety (uzupełnić, jeżeli dotyczy)"]
[null,null,"Waga wszystkich komponentów i opakowania/wań głównych na 1 opakowaniu zbiorczym (wraz z nim)",null,null,{"$f":"(E35*E37)+F40","v":0},"kg",{"$f":"IF(F35>1000,\"MAKSYMALNA WAGA PRZEKROCZONA\",\" \")","v":" "}]
[null,null,"Czy występuje dodatkowe zabezpieczenie opakowania (jeżeli tak to jakie)?"]
[null,null,"Czy można piętrować opakowanie (jeżeli tak, to ile warstw)?"]
[null,null,"Wysokość opakowania zbiorczego wraz z opakowaniami głównymi i pomocniczymi",null,null,null,"cm",{"$f":"IF(F44>190,\"MAKSYMALNA WYSOKOŚĆ PRZEKROCZONA\",\" \")","v":" "}]
[]
[null,null,"PYTANIA UZUPEŁNIAJĄCE",null,null,null,null,"DODATKOWE KOMENTARZE"]
[null,null,"Czy materiał jest niebezpieczny i wymaga MSDS?"]
[null,null,"Czy wymaga specjalnych warunków przechowywania?"]
[null,null,"Czy materiał ma datę przydatności do zużycia?"]
[null,null,"Czy któreś z ww. opakowań jest zwrotne? Jeśli tak, to które? "]
[]
[]
[null,null,"Zdjęcie lub rysunek opakowania głównego","Zdjęcie lub rysunek opakowania pomocniczego",null,null,null,"Zdjęcie lub rysunek opakowania zbiorczego"]

{"sheet":"Packaging CC","index":4,"n_rows":53,"n_cols":31,"rows_kept":53,"cut":false,"hidden":true,"merged":[[52,3,52,6],[52,7,52,14],[53,2,69,2],[53,3,69,6],[53,7,69,14],[32,7,39,14],[40,7,40,14],[45,3,45,6],[45,7,45,14],[41,7,42,14],[43,7,43,14],[46,3,46,6],[46,7,49,14],[47,3,47,6],[48,3,48,6],[49,3,49,6],[31,7,31,14],[8,3,8,4],[11,3,11,4],[11,7,11,13],[12,3,12,4],[12,7,12,13],[13,3,13,4],[13,7,13,13],[14,3,14,4],[14,7,14,13],[16,2,17,14],[29,2,29,4],[29,5,29,6],[10,3,10,4],[2,2,3,13],[5,3,5,4],[5,6,5,7],[6,2,7,2],[6,3,7,4],[6,6,6,7]]}
[]
[]
[null,null,"GENERAL INFORMATION"]
[]
[]
[null,null,"Supplier name",null,null,null,"Expiry date"]
[null,null,"Supplier address"]
[]
[null,null,"E-mail"]
[null,null,"Supplier part number"]
[null,null,"Supplier part description ",null,null,null,"Legend"]
[null,null,"Supplier's component EAN number",null,null,null,null,"Field to be completed obligatory "]
[null,null,"ERP part number SMA",null,null,null,null,"Field to be completed optionally"]
[null,null,"SMA part description",null,null,null,null,"Field to be completed automatically/no need to complete"]
[null,null,"SMA component EAN number",null,null,null,null,"Information field"]
[]
[null,null,"PACKAGING INFORMATION"]
[]
[]
[]
[]
[]
[]
[]
[]
[]
[]
[]
[]
[null,null,"Number of components for which the following instruction is made (number of components ordered per delivery = MDQ)"]
[null,null,null,null,null,null,null,null,null,null,null,null,null,null,null,null,null,null,null,null,null,null,null,null,null,null,null,".."]
[null,null,null,"PRIMARY PACKAGING","SUPPLEMENTARY PACKAGING","AGGREGATE PACKAGING","Unit","ADDITIONAL COMMENTS",null,null,null,null,null,null,null,null,null,null,null,null,null,null,null,null,null,null,null,null,"None","None"]
[null,null,"Weight of a single component ",null,null,null,null,null,null,null,null,null,null,null,null,null,null,null,null,null,null,null,null,null,null,null,null,"Acceptable","Cardboard","Cardboard"]
[null,null,"Components  qty. per 1 container",null,{"$f":"D34*D36","v":0},{"$f":"E37*E34","v":0},null,null,null,null,null,null,null,null,null,null,null,null,null,null,null,null,null,null,null,null,null,"Unacceptable","Plastic bag","Plastic bag"]
[null,null,"Weight of 1 package with components",null,null,null,"kg",null,null,null,null,null,null,null,null,null,null,null,null,null,null,null,null,null,null,null,null,1,"Chep box","Chep box"]
[null,null,"Quantity of primary packaging in 1 supplementary packaging",null,null,null,null,null,null,null,null,null,null,null,null,null,null,null,null,null,null,null,null,null,null,null,null,2,"Other pack","Pallet EUR 1 (800mm x 1200mm)","800mm x 1200mm"]
[null,null,"Quantity of supplementary packaging in/on the 1 aggregate packaging",null,null,null,null,null,null,null,null,null,null,null,null,null,null,null,null,null,null,null,null,null,null,null,null,3,null,"Another type of pallet","1,200mm x 1,000mm"]
[null,null,"Type of packaging",null,null,null,null,null,null,null,null,null,null,null,null,null,null,null,null,null,null,null,null,null,null,null,null,4,null,"Lack of pallete","1,000mm x 1,200mm"]
[null,null,"Package dimensions (L x W x H)",null,null,null,null,null,null,null,null,null,null,null,null,null,null,null,null,null,null,null,null,null,null,null,null,5,null,null,"800mm x 600mm"]
[null,null,"Weight of the pallet (obligatory, if applicable)",null,null,null,null,null,null,null,null,null,null,null,null,null,null,null,null,null,null,null,null,null,null,null,null,6,null,null,"Another type of pallet"]
[null,null,"Weight of all components and primary container(s) in/on the 1 aggregate packaging (including them)",null,null,{"$f":"(E35*E37)+F40","v":0},"kg",{"$f":"IF(F35>1000,\"MAXIMUM WEIGHT EXCEEDED\",\" \")","v":" "},null,null,null,null,null,null,null,null,null,null,null,null,null,null,null,null,null,null,null,7,null,null,"Lack of pallete"]
[null,null,"Is there any additional packaging protection (if so, which one)?",null,null,null,null,null,null,null,null,null,null,null,null,null,null,null,null,null,null,null,null,null,null,null,null,8]
[null,null,"Is it possible to stack the packaging (if so, how many layers)?",null,null,null,null,null,null,null,null,null,null,null,null,null,null,null,null,null,null,null,null,null,null,null,null,9]
[null,null,"Height of the aggregate packaging including the primary container(s) and supplementary packaging",null,null,null,"cm",{"$f":"IF(F44>190,\"MAXIMUM HEIGHT EXCEEDED\",\" \")","v":" "},null,null,null,null,null,null,null,null,null,null,null,null,null,null,null,null,null,null,null,null,null,"None"]
[null,null,null,null,null,null,null,null,null,null,null,null,null,null,null,null,null,null,null,null,null,null,null,null,null,null,null,"Stretch foil","g","Cardboard"]
[null,null,"SUPPLEMENTARY QUESTIONS",null,null,null,null,"ADDITIONAL COMMENTS",null,null,null,null,null,null,null,null,null,null,null,null,null,null,null,null,null,null,null,"Strapping tape","kg","Plastic bag"]
[null,null,"Is material dangerous and need MSDS?",null,null,null,null,null,null,null,null,null,null,null,null,null,null,null,null,null,null,null,null,null,null,null,null,"Aggregate carton",null,"Other pack"]
[null,null,"Does material need special storage conditions?",null,null,null,null,null,null,null,null,null,null,null,null,null,null,null,null,null,null,null,null,null,null,null,null,"Aggregate carton + Foil","cm"]
[null,null,"Does material have expiration date?",null,null,null,null,null,null,null,null,null,null,null,null,null,null,null,null,null,null,null,null,null,null,null,null,"Aggregate carton + Foil + Tape","m",25]
[null,null,"Is primary container returnable? If so, which ones? ",null,null,null,null,null,null,null,null,null,null,null,null,null,null,null,null,null,null,null,null,null,null,null,null,"Foil + Tape",null,28]
[null,null,null,null,null,null,null,null,null,null,null,null,null,null,null,null,null,null,null,null,null,null,null,null,null,null,null,"Aggregate carton + Tape",null,12]
[null,null,null,null,null,null,null,null,null,null,null,null,null,null,null,null,null,null,null,null,null,null,null,null,null,null,null,"Other type of security",null,0]
[null,null,"Picture or drawing of the primary packaging","Picture or drawing of the supplementary packaging",null,null,null,"Picture or drawing of the aggregate packaging",null,null,null,null,null,null,null,null,null,null,null,null,null,null,null,null,null,null,null,null,null,"Other  "]

{"sheet":"Beczki_chemia","index":5,"n_rows":57,"n_cols":38,"rows_kept":57,"cut":false,"hidden":true,"merged":[[11,3,11,4],[12,3,12,4],[12,7,12,13],[13,3,13,4],[13,7,13,13],[11,7,11,13],[9,3,9,4],[10,3,10,4],[2,2,3,13],[5,3,5,4],[5,6,5,7],[6,6,6,7],[6,2,7,2],[6,3,7,4],[8,3,8,4],[52,3,52,6],[52,7,52,14],[53,2,69,2],[53,3,69,6],[53,7,69,14],[47,3,47,6],[47,7,50,14],[48,3,48,6],[49,3,49,6],[50,3,50,6],[14,3,14,4],[14,7,14,13],[16,2,17,14],[46,3,46,6],[46,7,46,14],[31,6,31,14],[42,6,42,14],[32,6,41,14],[29,2,29,5],[29,6,29,7],[44,6,44,14],[43,6,43,14]]}
[]
[]
[null,null,"INFORMACJE OGÓLNE"]
[]
[]
[null,null,"Nazwa dostawcy",null,null,null,"Data wystawienia"]
[null,null,"Adres dostawcy"]
[]
[null,null,"E-mail"]
[null,null,"Numer części dostawcy"]
[null,null,"Nazwa części dostawcy",null,null,null,"Legenda "]
[null,null,"Numer EAN komponentu u Dostawcy",null,null,null,null,"Pole do uzupełnienia obligatoryjnie"]
[null,null,"Numer ERP części SMA",null,null,null,null,"Pole do uzupełnienia opcjonalnie"]
[null,null,"Nazwa części SMA",null,null,null,null,"Pole uzupełniane automatycznie/brak konieczności uzupełnienia"]
[null,null,"Numer EAN  komponentu w SMA",null,null,null,null,"Pole informacyjne"]
[]
[null,null,"INFORMACJE DOTYCZĄCE SPOSOBU PAKOWANIA"]
[]
[]
[]
[]
[]
[]
[]
[]
[]
[]
[]
[]
[null,null,"Ilość komponentów, dla której sporządzana jest poniższa instrukcja (ilość komponentów zamawiana w jednej dostawie = MDQ)"]
[]
[null,null,null,"OPAKOWANIE GŁÓWNE","OPAKOWANIE ZBIORCZE","J.m.","DODATKOWE KOMENTARZE"]
[null,null,"Waga materiału netto",null,null,null,null,null,null,null,null,null,null,null,null,null,null,null,null,null,null,null,null,null,null,null,null,null,null,null,"."]
[null,null,"Waga beczki z materiałem "]
[null,null,"Rodzaj beczki",null,null,null,null,null,null,null,null,null,null,null,null,null,null,null,null,null,null,null,null,null,null,null,null,null,null,null,"g",null,"Niedozwolone"]
[null,null,"Wymiary beczki (dł x szer x wys)",null,null,null,null,null,null,null,null,null,null,null,null,null,null,null,null,null,null,null,null,null,null,null,null,null,null,null,"kg",null,"Dozwolone"]
[null,null,"Czy występuje dodatkowe zabezpieczenie beczki/ beczek (jeśli tak, to jakie?)",null,null,null,null,null,null,null,null,null,null,null,null,null,null,null,null,null,null,null,null,null,null,null,null,null,null,null,null,null,1]
[null,null,"Czy można piętrować (jeżeli tak, to ile warstw?)",null,null,null,null,null,null,null,null,null,null,null,null,null,null,null,null,null,null,null,null,null,null,null,null,null,null,null,"mm",null,2,null,"Paleta EUR 1 (800mm x 1200mm)","800mm x 1200mm"]
[null,null,"Ilość beczek na/w 1 opakowaniu zbiorczym (na 1 palecie)",null,null,null,null,null,null,null,null,null,null,null,null,null,null,null,null,null,null,null,null,null,null,null,null,null,null,null,"cm",null,3,null,"Inny rodzaj palety","1,200mm x 1,000mm"]
[null,null,"Wysokość opakowania zbiorczego wraz z opakowaniami głównymi",null,null,null,null,null,null,null,null,null,null,null,null,null,null,null,null,null,null,null,null,null,null,null,null,null,null,null,"m",null,4,null,"Brak palety","1,000mm x 1,200mm"]
[null,null,"Rodzaj/ wymiary opakowania zbiorczego (palety)",null,null,null,null,null,null,null,null,null,null,null,null,null,null,null,null,null,null,null,null,null,null,null,null,null,null,null,null,null,5,null,null,"800mm x 600mm"]
[null,null,"Waga palety (uzupełnić, jeżeli dotyczy)",null,null,null,null,null,null,null,null,null,null,null,null,null,null,null,null,null,null,null,null,null,null,null,null,null,null,null,null,null,6,null,null,"Inny rodzaj"]
[null,null,"Waga całego materiału i wszystkich beczek umieszczonych na 1 opakowaniu zbiorczym (wraz z nim)",null,{"$f":"(D34*E39)+E42","v":0},"kg",{"$f":"IF(E43>1000,\"MAKSYMALNA WAGA PRZEKROCZONA\",\" \")","v":" "},null,null,null,null,null,null,null,null,null,null,null,null,null,null,null,null,null,null,null,null,null,null,null,null,null,7,null,null,"Brak palety"]
[null,null,"Wysokość opakowania zbiorczego wraz z opakowaniami głównymi",null,null,"cm",{"$f":"IF(E44>190,\"MAKSYMALNA WYSOKOŚĆ PRZEKROCZONA\",\" \")","v":" "},null,null,null,null,null,null,null,null,null,null,null,null,null,null,null,null,null,null,null,null,null,null,null,null,null,8]
[null,null,"Czy występuje dodatkowe zabezpieczenie opakowania zbiorczego?",null,null,null,null,null,null,null,null,null,null,null,null,null,null,null,null,null,null,null,null,null,null,null,null,null,null,null,null,null,9]
[]
[null,null,"PYTANIA UZUPEŁNIAJĄCE",null,null,null,null,"DODATKOWE KOMENTARZE",null,null,null,null,null,null,null,null,null,null,null,null,null,null,null,null,null,null,null,null,null,null,25,"Folia stretch"]
[null,null,"Czy materiał jest niebezpieczny i wymaga MSDS?",null,null,null,null,null,null,null,null,null,null,null,null,null,null,null,null,null,null,null,null,null,null,null,null,null,null,null,28,"Taśma spinająca"]
[null,null,"Czy wymaga specjalnych warunków przechowywania?",null,null,null,null,null,null,null,null,null,null,null,null,null,null,null,null,null,null,null,null,null,null,null,null,null,null,null,12,"Folia + Taśma"]
[null,null,"Czy materiał ma datę przydatności do zużycia?",null,null,null,null,null,null,null,null,null,null,null,null,null,null,null,null,null,null,null,null,null,null,null,null,null,null,null,0,"Inne zabezpieczenie"]
[null,null,"Czy któreś z ww. opakowań jest zwrotne? Jeśli tak, to które? ",null,null,null,null,null,null,null,null,null,null,null,null,null,null,null,null,null,null,null,null,null,null,null,null,null,null,null,"Inne","Brak zabezpieczenia"]
[]
[null,null,"Zdjęcie lub rysunek opakowania głównego","Zdjęcie lub rysunek opakowania pomocniczego",null,null,null,"Zdjęcie lub rysunek opakowania zbiorczego"]
[null,null,null,null,null,null,null,null,null,null,null,null,null,null,null,null,null,null,null,null,null,null,null,null,null,null,null,null,null,null,null,null,null,null,null,null,null,"Karton zbiorczy"]
[null,null,null,null,null,null,null,null,null,null,null,null,null,null,null,null,null,null,null,null,null,null,null,null,null,null,null,null,null,null,null,null,null,null,null,null,null,"Karton zbiorczy + Folia"]
[null,null,null,null,null,null,null,null,null,null,null,null,null,null,null,null,null,null,null,null,null,null,null,null,null,null,null,null,null,null,null,null,null,null,null,null,null,"Karton zbiorczy + Folia + Taśma"]
[null,null,null,null,null,null,null,null,null,null,null,null,null,null,null,null,null,null,null,null,null,null,null,null,null,null,null,null,null,null,null,null,null,null,null,null,null,"Karton zbiorczy + Taśma"]

{"sheet":"Barrels","index":6,"n_rows":53,"n_cols":33,"rows_kept":53,"cut":false,"hidden":true,"merged":[[13,3,13,4],[13,7,13,13],[2,2,3,13],[5,3,5,4],[5,6,5,7],[6,2,7,2],[6,3,7,4],[6,6,6,7],[8,3,8,4],[11,3,11,4],[11,7,11,13],[12,3,12,4],[12,7,12,13],[10,3,10,4],[14,3,14,4],[14,7,14,13],[16,2,17,14],[31,6,31,14],[32,6,41,14],[42,6,42,14],[46,7,46,14],[46,3,46,6],[47,7,50,14],[50,3,50,6],[47,3,47,6],[48,3,48,6],[49,3,49,6],[43,6,43,14],[52,3,52,6],[52,7,52,14],[53,2,69,2],[53,3,69,6],[53,7,69,14]]}
[]
[]
[null,null,"GENERAL INFORMATION"]
[]
[]
[null,null,"Supplier name",null,null,null,"Expiry date"]
[null,null,"Supplier address"]
[]
[null,null,"E-mail"]
[null,null,"Supplier part number"]
[null,null,"Supplier part description ",null,null,null,"Legend"]
[null,null,"Supplier's component EAN number",null,null,null,null,"Field to be completed obligatory "]
[null,null,"ERP part number SMA",null,null,null,null,"Field to be completed optionally"]
[null,null,"SMA part description",null,null,null,null,"Field to be completed automatically/no need to complete"]
[null,null,"SMA component EAN number",null,null,null,null,"Information field"]
[]
[null,null,"PACKAGING INFORMATION"]
[]
[]
[]
[]
[]
[]
[]
[]
[]
[]
[]
[]
[null,null,"Number of components for which the following instruction is made (number of components ordered per delivery = MDQ)"]
[]
[null,null,null,"PRIMARY PACKAGING","AGGREGATE PACKAGING","Unit","ADDITIONAL COMMENTS",null,null,null,null,null,null,null,null,null,null,null,null,null,null,null,null,null,null,null,null,".."]
[null,null,"Net weight of material",null,null,null,null,null,null,null,null,null,null,null,null,null,null,null,null,null,null,null,null,null,null,null,null,"g",null,"Acceptable"]
[null,null,"Weight of the barrel with material ",null,null,null,null,null,null,null,null,null,null,null,null,null,null,null,null,null,null,null,null,null,null,null,null,"kg",null,"Unacceptable"]
[null,null,"Kind of barrel",null,null,null,null,null,null,null,null,null,null,null,null,null,null,null,null,null,null,null,null,null,null,null,null,null,null,1,null,"None"]
[null,null,"Barrel dimensions (L x W x H)",null,null,null,null,null,null,null,null,null,null,null,null,null,null,null,null,null,null,null,null,null,null,null,null,"mm",null,2,null,"Pallet EUR 1 (800mm x 1200mm)","800mm x 1200mm"]
[null,null,"Is there any additional protection for the barrel(s) (if so, which one?)",null,null,null,null,null,null,null,null,null,null,null,null,null,null,null,null,null,null,null,null,null,null,null,null,"cm",null,3,null,"Another type of pallet","1,200mm x 1,000mm"]
[null,null,"Is it possible to stack the packaging (if so, how many layers)?",null,null,null,null,null,null,null,null,null,null,null,null,null,null,null,null,null,null,null,null,null,null,null,null,"m",null,4,null,"Lack of pallete","1,000mm x 1,200mm"]
[null,null,"Quantity of barrels in/on the 1 aggregate packaging",null,null,null,null,null,null,null,null,null,null,null,null,null,null,null,null,null,null,null,null,null,null,null,null,null,null,5,null,null,"800mm x 600mm"]
[null,null,"Height of the aggregate packaging including the primary container(s)",null,null,null,null,null,null,null,null,null,null,null,null,null,null,null,null,null,null,null,null,null,null,null,null,null,null,6,null,null,"Another type of pallet"]
[null,null,"Type/size of aggregate packaging (pallet)",null,null,null,null,null,null,null,null,null,null,null,null,null,null,null,null,null,null,null,null,null,null,null,null,null,null,7,null,null,"Lack of pallete"]
[null,null,"Weight of the pallet (obligatory, if applicable)",null,null,null,null,null,null,null,null,null,null,null,null,null,null,null,null,null,null,null,null,null,null,null,null,null,null,8]
[null,null,"Weight of all material and of all barrels placed in/on the 1 aggregate packaging (with it)",null,{"$f":"(D34*E39)+E42","v":0},"kg",{"$f":"IF(E43>1000,\"MAXIMUM WEIGHT EXCEEDED\",\" \")","v":" "},null,null,null,null,null,null,null,null,null,null,null,null,null,null,null,null,null,null,null,null,null,null,9]
[null,null,"Height of the aggregate packaging including the primary container(s)",null,null,"cm",{"$f":"IF(E44>190,\"MAXIMUM HEIGHT EXCEEDED\",\"\")","v":""}]
[null,null,"Is there any additional packaging protection (if so, which one)?",null,null,null,null,null,null,null,null,null,null,null,null,null,null,null,null,null,null,null,null,null,null,null,null,25,"Stretch foil"]
[null,null,null,null,null,null,null,null,null,null,null,null,null,null,null,null,null,null,null,null,null,null,null,null,null,null,null,28,"Strapping tape"]
[null,null,"SUPPLEMENTARY QUESTIONS",null,null,null,null,"ADDITIONAL COMMENTS",null,null,null,null,null,null,null,null,null,null,null,null,null,null,null,null,null,null,null,12,"Foil + tape",null,null,"Karton zbiorczy"]
[null,null,"Is material dangerous and need MSDS?",null,null,null,null,null,null,null,null,null,null,null,null,null,null,null,null,null,null,null,null,null,null,null,null,0,"Other type of security",null,null,"Karton zbiorczy + Folia"]
[null,null,"Does material need special storage conditions?",null,null,null,null,null,null,null,null,null,null,null,null,null,null,null,null,null,null,null,null,null,null,null,null,"Inne","Lack of security ",null,null,"Karton zbiorczy + Folia + Taśma"]
[null,null,"Does material have expiration date?"]
[null,null,"Is primary container returnable? If so, which ones? ",null,null,null,null,null,null,null,null,null,null,null,null,null,null,null,null,null,null,null,null,null,null,null,null,null,null,null,null,"Karton zbiorczy + Taśma"]
[]
[null,null,"Picture or drawing of the primary packaging","Picture or drawing of the supplementary packaging",null,null,null,"Picture or drawing of the aggregate packaging"]

{"sheet":"Kartony","index":7,"n_rows":56,"n_cols":35,"rows_kept":56,"cut":false,"hidden":true,"merged":[[43,7,43,15],[29,2,29,6],[29,7,29,8],[9,3,9,4],[10,3,10,4],[34,4,34,5],[14,3,14,4],[16,2,17,15],[14,8,14,14],[13,3,13,4],[35,4,35,5],[36,4,36,5],[41,4,41,5],[37,4,37,5],[38,4,38,5],[2,2,3,14],[5,3,5,4],[5,7,5,8],[6,7,6,8],[13,8,13,14],[12,8,12,14],[11,8,11,14],[6,2,7,2],[6,3,7,4],[8,3,8,4],[11,3,11,4],[12,3,12,4],[52,2,68,2],[52,3,68,6],[45,3,45,6],[46,3,46,6],[47,3,47,6],[48,3,48,6],[49,3,49,6],[51,7,51,15],[52,7,68,15],[43,4,43,5],[31,4,31,5],[32,4,32,5],[51,3,51,6],[46,7,49,15],[45,7,45,15],[31,7,31,15],[39,7,39,15],[32,7,38,15],[42,4,42,5],[39,4,39,5],[40,4,40,5],[33,4,33,5],[40,7,42,15]]}
[]
[]
[null,null,"INFORMACJE OGÓLNE"]
[]
[]
[null,null,"Nazwa dostawcy",null,null,null,null,"Data wystawienia"]
[null,null,"Adres dostawcy"]
[]
[null,null,"E-mail"]
[null,null,"Numer części dostawcy"]
[null,null,"Nazwa części dostawcy",null,null,null,null,"Legenda "]
[null,null,"Numer EAN komponentu u Dostawcy",null,null,null,null,null,"Pole do uzupełnienia obligatoryjnie"]
[null,null,"Numer ERP części SMA",null,null,null,null,null,"Pole do uzupełnienia opcjonalnie"]
[null,null,"Nazwa części SMA",null,null,null,null,null,"Pole uzupełniane automatycznie/brak konieczności uzupełnienia"]
[null,null,"Numer EAN  komponentu w SMA",null,null,null,null,null,"Pole informacyjne"]
[]
[null,null,"INFORMACJE DOTYCZĄCE SPOSOBU PAKOWANIA"]
[]
[]
[]
[]
[]
[]
[]
[]
[]
[]
[]
[]
[null,null,"Ilość komponentów, dla której sporządzana jest poniższa instrukcja (ilość komponentów zamawiana w jednej dostawie = MDQ)"]
[]
[null,null,null,"OPAKOWANIE GŁÓWNE","OPAKOWANIE ZBIORCZE",null,"J.m.","DODATKOWE KOMENTARZE",null,null,null,null,null,null,null,null,null,null,null,null,null,null,null,null,null,null,null,null,null,null,null,"Niedozwolone"]
[null,null,"Waga pojedynczego komponentu ",null,null,null,null,null,null,null,null,null,null,null,null,null,null,null,null,null,null,null,null,null,null,null,null,null,null,null,null,"Dozwolone",null,"Karton"]
[null,null,"Ilość komponentów w 1 opakowaniu ",null,{"$f":"D34*D36","v":0},null,null,null,null,null,null,null,null,null,null,null,null,null,null,null,null,null,null,null,null,null,null,null,null,null,null,1,null,"Worek"]
[null,null,"Waga 1 opakowania wraz z komponentami ",null,null,null,"kg",null,null,null,null,null,null,null,null,null,null,null,null,null,null,null,null,null,null,null,null,null,null,null,null,2,null,"Chep pojemnik"]
[null,null,"Ilość opakowań głównych (kartonów) na/ w 1 opakowaniu zbiorczym",null,null,null,null,null,null,null,null,null,null,null,null,null,null,null,null,null,null,null,null,null,null,null,null,null,null,null,null,3,"Karton","Brak ","800mm x 1200mm"]
[null,null,"Rodzaj opakowania ",null,null,null,null,null,null,null,null,null,null,null,null,null,null,null,null,null,null,null,null,null,null,null,null,null,null,null,null,4,"Chep box","Paleta EUR 1 (800mm x 1200mm)","1,200mm x 1,000mm"]
[null,null,"Wymiary opakowania (dł x szer x wys)",null,null,null,null,null,null,null,null,null,null,null,null,null,null,null,null,null,null,null,null,null,null,null,null,null,null,null,null,5,"Inne","Inny rodzaj palety","1,000mm x 1,200mm"]
[null,null,"Waga palety (uzupełnić, jeżeli dotyczy)",null,null,null,null,null,null,null,null,null,null,null,null,null,null,null,null,null,null,null,null,null,null,null,null,null,null,null,null,6,null,"Brak palety","800mm x 600mm"]
[null,null,"Waga wszystkich komponentów i opakowania/wań głównych na 1 opakowaniu zbiorczym (wraz z nim)",null,{"$f":"(D35*D36)+E39","v":0},null,"kg",{"$f":"IF(E40>1000,\"MAKSYMALNA WAGA PRZEKROCZONA\",\" \")","v":" "},null,null,null,null,null,null,null,null,null,null,null,null,null,null,null,null,null,null,null,null,null,null,null,7,null,null,"Inny rodzaj"]
[null,null,"Czy będzie użyte dodatkowe zabezpieczenie komponentów w opakowaniu? (jeżeli tak, to jakie?)",null,null,null,null,null,null,null,null,null,null,null,null,null,null,null,null,null,null,null,null,null,null,null,null,null,null,null,null,8,null,null,"Brak palety"]
[null,null,"Czy będzie użyte dodatkowe zabezpieczenie opakowania? (jeżeli tak, to jakie?)",null,null,null,null,null,null,null,null,null,null,null,null,null,null,null,null,null,null,null,null,null,null,null,null,null,null,null,null,9]
[null,null,"Czy można piętrować opakowanie (jeżeli tak, to ile warstw?)"]
[null,null,"Wysokość opakowania zbiorczego wraz z opakowaniami głównymi",null,null,null,"cm",{"$f":"IF(E44>190,\"MAKSYMALNA WYSOKOŚĆ PRZEKROCZONA\",\" \")","v":" "},null,null,null,null,null,null,null,null,null,null,null,null,null,null,null,null,null,null,null,null,null,null,null,"Folia stretch","g","Karton"]
[null,null,null,null,null,null,null,null,null,null,null,null,null,null,null,null,null,null,null,null,null,null,null,null,null,null,null,null,null,null,null,"Taśma spinająca","kg","Worek"]
[null,null,"PYTANIA UZUPEŁNIAJĄCE",null,null,null,null,"DODATKOWE KOMENTARZE",null,null,null,null,null,null,null,null,null,null,null,null,null,null,null,null,null,null,null,null,null,null,null,"Karton zbiorczy",null,"Inne"]
[null,null,"Czy materiał jest niebezpieczny i wymaga MSDS?",null,null,null,null,null,null,null,null,null,null,null,null,null,null,null,null,null,null,null,null,null,null,null,null,null,null,null,null,"Karton zbiorczy + Folia","cm"]
[null,null,"Czy wymaga specjalnych warunków przechowywania?",null,null,null,null,null,null,null,null,null,null,null,null,null,null,null,null,null,null,null,null,null,null,null,null,null,null,null,null,"Karton zbiorczy + Folia + Taśma","m"]
[null,null,"Czy materiał ma datę przydatności do zużycia?",null,null,null,null,null,null,null,null,null,null,null,null,null,null,null,null,null,null,null,null,null,null,null,null,null,null,null,null,"Folia + Taśma"]
[null,null,"Czy któreś z ww. opakowań jest zwrotne? Jeśli tak, to które? ",null,null,null,null,null,null,null,null,null,null,null,null,null,null,null,null,null,null,null,null,null,null,null,null,null,null,null,null,"Karton zbiorczy + Taśma"]
[null,null,null,null,null,null,null,null,null,null,null,null,null,null,null,null,null,null,null,null,null,null,null,null,null,null,null,null,null,null,null,"Inny rodzaj zabezpieczenia"]
[null,null,"Zdjęcie lub rysunek opakowania głównego","Zdjęcie lub rysunek opakowania pomocniczego",null,null,null,"Zdjęcie lub rysunek opakowania zbiorczego",null,null,null,null,null,null,null,null,null,null,null,null,null,null,null,null,null,null,null,null,null,null,null,25]
[null,null,null,null,null,null,null,null,null,null,null,null,null,null,null,null,null,null,null,null,null,null,null,null,null,null,null,null,null,null,null,28]
[null,null,null,null,null,null,null,null,null,null,null,null,null,null,null,null,null,null,null,null,null,null,null,null,null,null,null,null,null,null,null,12]
[null,null,null,null,null,null,null,null,null,null,null,null,null,null,null,null,null,null,null,null,null,null,null,null,null,null,null,null,null,null,null,0]
[null,null,null,null,null,null,null,null,null,null,null,null,null,null,null,null,null,null,null,null,null,null,null,null,null,null,null,null,null,null,null,"Inne"]

{"sheet":"Cartons","index":8,"n_rows":52,"n_cols":30,"rows_kept":52,"cut":false,"hidden":true,"merged":[[35,4,35,5],[36,4,36,5],[37,4,37,5],[29,2,29,5],[9,3,9,4],[10,3,10,4],[13,3,13,4],[13,8,13,14],[14,3,14,4],[14,8,14,14],[16,2,17,15],[2,2,3,14],[5,3,5,4],[5,7,5,8],[6,2,7,2],[6,3,7,4],[6,7,6,8],[8,3,8,4],[11,3,11,4],[11,8,11,14],[12,3,12,4],[12,8,12,14],[38,4,38,5],[31,4,31,5],[31,7,31,15],[45,3,45,6],[45,7,45,15],[39,4,39,5],[39,7,39,15],[40,4,40,5],[41,4,41,5],[42,4,42,5],[43,4,43,5],[43,7,43,15],[32,4,32,5],[32,7,38,15],[33,4,33,5],[34,4,34,5],[46,3,46,6],[46,7,49,15],[47,3,47,6],[48,3,48,6],[49,3,49,6],[51,3,51,6],[51,7,51,15],[52,2,68,2],[52,3,68,6],[52,7,68,15]]}
[]
[]
[null,null,"GENERAL INFORMATION"]
[]
[]
[null,null,"Supplier name",null,null,null,null,"Expiry date"]
[null,null,"Supplier address"]
[]
[null,null,"E-mail"]
[null,null,"Supplier part number"]
[null,null,"Supplier part description ",null,null,null,null,"Legend"]
[null,null,"Supplier's component EAN number",null,null,null,null,null,"Field to be completed obligatory "]
[null,null,"ERP part number SMA",null,null,null,null,null,"Field to be completed optionally"]
[null,null,"SMA part description",null,null,null,null,null,"Field to be completed automatically/no need to complete"]
[null,null,"SMA component EAN number",null,null,null,null,null,"Information field"]
[]
[null,null,"PACKAGING INFORMATION"]
[null,null,null,null,null,null,null,null,null,null,null,null,null,null,null,null,null,null,null,null,null,null,null,null,null,null,".."]
[]
[null,null,null,null,null,null,null,null,null,null,null,null,null,null,null,null,null,null,null,null,null,null,null,null,null,null,"Acceptable",null,"None"]
[null,null,null,null,null,null,null,null,null,null,null,null,null,null,null,null,null,null,null,null,null,null,null,null,null,null,"Unacceptable",null,"Cardboard"]
[null,null,null,null,null,null,null,null,null,null,null,null,null,null,null,null,null,null,null,null,null,null,null,null,null,null,1,null,"Plastic bag"]
[null,null,null,null,null,null,null,null,null,null,null,null,null,null,null,null,null,null,null,null,null,null,null,null,null,null,2,null,"Chep box"]
[null,null,null,null,null,null,null,null,null,null,null,null,null,null,null,null,null,null,null,null,null,null,null,null,null,null,3,"Cardboard","Pallet EUR 1 (800mm x 1200mm)","800mm x 1200mm"]
[null,null,null,null,null,null,null,null,null,null,null,null,null,null,null,null,null,null,null,null,null,null,null,null,null,null,4,"Chep box","Another type of pallet","1,200mm x 1,000mm"]
[null,null,null,null,null,null,null,null,null,null,null,null,null,null,null,null,null,null,null,null,null,null,null,null,null,null,5,"Other","Lack of pallete","1,000mm x 1,200mm"]
[null,null,null,null,null,null,null,null,null,null,null,null,null,null,null,null,null,null,null,null,null,null,null,null,null,null,6,null,null,"800mm x 600mm"]
[null,null,null,null,null,null,null,null,null,null,null,null,null,null,null,null,null,null,null,null,null,null,null,null,null,null,7,null,null,"Another type of pallet"]
[null,null,null,null,null,null,null,null,null,null,null,null,null,null,null,null,null,null,null,null,null,null,null,null,null,null,8,null,null,"Lack of pallete"]
[null,null,"Number of components for which the following instruction is made (number of components ordered per delivery = MDQ)",null,null,null,null,null,null,null,null,null,null,null,null,null,null,null,null,null,null,null,null,null,null,null,9]
[]
[null,null,null,"PRIMARY PACKAGING","AGGREGATE PACKAGING",null,"Unit","ADDITIONAL COMMENTS",null,null,null,null,null,null,null,null,null,null,null,null,null,null,null,null,null,null,"Stretch foil","g","Cardboard"]
[null,null,"Weight of a single component ",null,null,null,null,null,null,null,null,null,null,null,null,null,null,null,null,null,null,null,null,null,null,null,"Strapping tape","kg","Plastic bag"]
[null,null,"Components  qty. per 1 container",null,{"$f":"D34*D36","v":0},null,null,null,null,null,null,null,null,null,null,null,null,null,null,null,null,null,null,null,null,null,"Aggregate carton",null,"Other pack"]
[null,null,"Weight of 1 package with components",null,null,null,"kg",null,null,null,null,null,null,null,null,null,null,null,null,null,null,null,null,null,null,null,"Aggregate carton + Foil","cm"]
[null,null,"Quantity of primary container(s) in/on the 1 aggregate packaging",null,null,null,null,null,null,null,null,null,null,null,null,null,null,null,null,null,null,null,null,null,null,null,"Aggregate carton + Foil + Tape","m"]
[null,null,"Type of packaging",null,null,null,null,null,null,null,null,null,null,null,null,null,null,null,null,null,null,null,null,null,null,null,"Foil + Tape"]
[null,null,"Package dimensions (L x W x H)",null,null,null,null,null,null,null,null,null,null,null,null,null,null,null,null,null,null,null,null,null,null,null,"Aggregate carton + Tape"]
[null,null,"Weight of the pallet (obligatory, if applicable)",null,null,null,null,null,null,null,null,null,null,null,null,null,null,null,null,null,null,null,null,null,null,null,"Other type of security"]
[null,null,"Weight of all components and primary container(s) in/on the 1 aggregate packaging (including them)",null,{"$f":"(D35*D36)+E39","v":0},null,"kg",{"$f":"IF(E40>1000,\"MAXIMUM WEIGHT EXCEEDED\",\" \")","v":" "},null,null,null,null,null,null,null,null,null,null,null,null,null,null,null,null,null,null,25]
[null,null,"Will additional protection of the components in the package be used? (if so, which one?)",null,null,null,null,null,null,null,null,null,null,null,null,null,null,null,null,null,null,null,null,null,null,null,28]
[null,null,"Is there any additional packaging protection (if so, which one)?",null,null,null,null,null,null,null,null,null,null,null,null,null,null,null,null,null,null,null,null,null,null,null,12]
[null,null,"Is it possible to stack the packaging (if so, how many layers)?",null,null,null,null,null,null,null,null,null,null,null,null,null,null,null,null,null,null,null,null,null,null,null,0]
[null,null,"Height of the aggregate packaging including the primary container(s) and supplementary packaging",null,null,null,"cm",{"$f":"IF(E44>190,\"MAXIMUM HEIGHT EXCEEDED\",\" \")","v":" "},null,null,null,null,null,null,null,null,null,null,null,null,null,null,null,null,null,null,"Inne"]
[]
[null,null,"SUPPLEMENTARY QUESTIONS",null,null,null,null,"ADDITIONAL COMMENTS"]
[null,null,"Is material dangerous and need MSDS?"]
[null,null,"Does material need special storage conditions?"]
[null,null,"Does material have expiration date?"]
[null,null,"Is primary container returnable? If so, which ones? "]
[]
[null,null,"Picture or drawing of the primary packaging","Picture or drawing of the supplementary packaging",null,null,null,"Picture or drawing of the aggregate packaging"]

{"sheet":"Szpule","index":9,"n_rows":53,"n_cols":36,"rows_kept":53,"cut":false,"hidden":true,"merged":[[42,6,43,14],[44,6,44,14],[13,3,13,4],[13,7,13,13],[11,3,11,4],[11,7,11,13],[12,3,12,4],[12,7,12,13],[2,2,3,13],[5,3,5,4],[5,6,5,7],[6,6,6,7],[8,3,8,4],[6,3,7,4],[9,3,9,4],[14,3,14,4],[14,7,14,13],[16,2,17,14],[29,2,29,5],[29,6,29,7],[10,3,10,4],[53,2,69,2],[53,3,69,6],[53,7,69,14],[6,2,7,2],[41,6,41,14],[32,6,40,14],[47,3,47,6],[47,7,50,14],[48,3,48,6],[49,3,49,6],[50,3,50,6],[52,3,52,6],[52,7,52,14],[31,6,31,14],[46,3,46,6],[46,7,46,14]]}
[]
[]
[null,null,"INFORMACJE OGÓLNE"]
[]
[]
[null,null,"Nazwa dostawcy",null,null,null,"Data wystawienia"]
[null,null,"Adres dostawcy"]
[]
[null,null,"E-mail"]
[null,null,"Numer części dostawcy"]
[null,null,"Nazwa części dostawcy",null,null,null,"Legenda "]
[null,null,"Numer EAN komponentu u Dostawcy",null,null,null,null,"Pole do uzupełnienia obligatoryjnie"]
[null,null,"Numer ERP części SMA",null,null,null,null,"Pole do uzupełnienia opcjonalnie"]
[null,null,"Nazwa części SMA",null,null,null,null,"Pole uzupełniane automatycznie/brak konieczności uzupełnienia"]
[null,null,"Numer EAN  komponentu w SMA",null,null,null,null,"Pole informacyjne"]
[]
[null,null,"INFORMACJE DOTYCZĄCE SPOSOBU PAKOWANIA"]
[]
[]
[]
[]
[]
[]
[]
[]
[]
[]
[]
[]
[null,null,"Ilość komponentów, dla której sporządzana jest poniższa instrukcja (ilość komponentów zamawiana w jednej dostawie = MDQ)"]
[]
[null,null,null,"OPAKOWANIE GŁÓWNE","OPAKOWANIE ZBIORCZE","J.m.","DODATKOWE KOMENTARZE",null,null,null,null,null,null,null,null,null,null,null,null,null,null,null,null,null,null,null,null,null,null,null,".."]
[null,null,"Typ szpuli (np. 100K)",null,null,null,null,null,null,null,null,null,null,null,null,null,null,null,null,null,null,null,null,null,null,null,null,null,null,null,"g",null,"Niedozwolone"]
[null,null,"Wymiary szpuli (wysokość x szerokość)",null,null,null,null,null,null,null,null,null,null,null,null,null,null,null,null,null,null,null,null,null,null,null,null,null,null,null,"kg",null,"Dozwolone"]
[null,null,"Waga szpuli",null,null,null,null,null,null,null,null,null,null,null,null,null,null,null,null,null,null,null,null,null,null,null,null,null,null,null,null,null,1,null,"Brak"]
[null,null,"Waga materiału",null,null,null,null,null,null,null,null,null,null,null,null,null,null,null,null,null,null,null,null,null,null,null,null,null,null,null,"mm",null,2,null,"Paleta EUR 1 (800mm x 1200mm)","800mm x 1200mm"]
[null,null,"Waga szpuli z materiałem",{"$f":"D35+D36","v":0},null,null,null,null,null,null,null,null,null,null,null,null,null,null,null,null,null,null,null,null,null,null,null,null,null,null,"cm",null,3,null,"Inny rodzaj palety","1,200mm x 1,000mm"]
[null,null,"Czy można piętrować szpule? (jeżeli tak, to ile warstw?)",null,null,null,null,null,null,null,null,null,null,null,null,null,null,null,null,null,null,null,null,null,null,null,null,null,null,null,"m",null,4,null,"Brak palety","1,000mm x 1,200mm"]
[null,null,"Iość szpul w/na jednym opakowaniu zbiorczym",null,null,null,null,null,null,null,null,null,null,null,null,null,null,null,null,null,null,null,null,null,null,null,null,null,null,null,null,null,5,null,null,"800mm x 600mm"]
[null,null,"Rodzaj/ wymiary opakowania zbiorczego (palety)"]
[null,null,"Waga palety (uzupełnić, jeżeli dotyczy)",null,null,null,null,null,null,null,null,null,null,null,null,null,null,null,null,null,null,null,null,null,null,null,null,null,null,null,null,null,6,null,null,"Inny rodzaj"]
[null,null,"Waga wszystkich komponentów i opakowania/wań głównych na 1 opakowaniu zbiorczym (wraz z nim)",null,{"$f":"(D37*E39)+E41","v":0},"kg",{"$f":"IF(E42>1000,\"MAKSYMALNA WAGA PRZEKROCZONA\",\" \")","v":" "},null,null,null,null,null,null,null,null,null,null,null,null,null,null,null,null,null,null,null,null,null,null,null,null,null,7,null,null,"Brak palety"]
[null,null,"Czy będzie użyte dodatkowe zabezpieczenie szpuli? (jeżeli tak, to jakie?)",null,null,null,null,null,null,null,null,null,null,null,null,null,null,null,null,null,null,null,null,null,null,null,null,null,null,null,null,null,8]
[null,null,"Czy będzie użyte dodatkowe zabezpieczenie opakowania? (jeżeli tak, to jakie?)",null,null,null,null,null,null,null,null,null,null,null,null,null,null,null,null,null,null,null,null,null,null,null,null,null,null,null,null,null,9]
[null,null,"Wysokość opakowania zbiorczego wraz z opakowaniami głównymi",null,null,"cm",{"$f":"IF(E45>190,\"MAKSYMALNA WYSOKOŚĆ PRZEKROCZONA\",\" \")","v":" "}]
[null,null,null,null,null,null,null,null,null,null,null,null,null,null,null,null,null,null,null,null,null,null,null,null,null,null,null,null,null,null,25,"Folia stretch"]
[null,null,"PYTANIA UZUPEŁNIAJĄCE",null,null,null,null,"DODATKOWE KOMENTARZE",null,null,null,null,null,null,null,null,null,null,null,null,null,null,null,null,null,null,null,null,null,null,28,"Taśma spinająca"]
[null,null,"Czy materiał jest niebezpieczny i wymaga MSDS?",null,null,null,null,null,null,null,null,null,null,null,null,null,null,null,null,null,null,null,null,null,null,null,null,null,null,null,12,"Folia + Taśma","Karton zbiorczy"]
[null,null,"Czy wymaga specjalnych warunków przechowywania?",null,null,null,null,null,null,null,null,null,null,null,null,null,null,null,null,null,null,null,null,null,null,null,null,null,null,null,0,"Inne zabezpieczenie","Karton zbiorczy + Folia"]
[null,null,"Czy materiał ma datę przydatności do zużycia?",null,null,null,null,null,null,null,null,null,null,null,null,null,null,null,null,null,null,null,null,null,null,null,null,null,null,null,"Inne",null,"Karton zbiorczy + Folia + Taśma"]
[null,null,"Czy któreś z ww. opakowań jest zwrotne? Jeśli tak, to które? "]
[null,null,null,null,null,null,null,null,null,null,null,null,null,null,null,null,null,null,null,null,null,null,null,null,null,null,null,null,null,null,null,null,"Karton zbiorczy + Taśma"]
[null,null,"Zdjęcie lub rysunek opakowania głównego","Zdjęcie lub rysunek opakowania pomocniczego",null,null,null,"Zdjęcie lub rysunek opakowania zbiorczego"]

{"sheet":"Reels","index":10,"n_rows":53,"n_cols":32,"rows_kept":53,"cut":false,"hidden":true,"merged":[[29,2,29,4],[9,3,9,4],[10,3,10,4],[13,3,13,4],[13,7,13,13],[14,3,14,4],[14,7,14,13],[16,2,17,14],[2,2,3,13],[5,3,5,4],[5,6,5,7],[6,2,7,2],[6,3,7,4],[6,6,6,7],[8,3,8,4],[11,3,11,4],[11,7,11,13],[12,3,12,4],[12,7,12,13],[31,6,31,14],[32,6,40,14],[41,6,41,14],[46,3,46,6],[46,7,46,14],[42,6,43,14],[44,6,44,14],[53,2,69,2],[53,3,69,6],[53,7,69,14],[52,7,52,15],[47,3,47,6],[47,7,50,14],[48,3,48,6],[49,3,49,6],[50,3,50,6],[52,3,52,6]]}
[]
[]
[null,null,"GENERAL INFORMATION"]
[]
[]
[null,null,"Supplier name",null,null,null,"Expiry date"]
[null,null,"Supplier address"]
[]
[null,null,"E-mail"]
[null,null,"Supplier part number"]
[null,null,"Supplier part description ",null,null,null,"Legend"]
[null,null,"Supplier's component EAN number",null,null,null,null,"Field to be completed obligatory "]
[null,null,"ERP part number SMA",null,null,null,null,"Field to be completed optionally"]
[null,null,"SMA part description",null,null,null,null,"Field to be completed automatically/no need to complete"]
[null,null,"SMA component EAN number",null,null,null,null,"Information field"]
[]
[null,null,"PACKAGING INFORMATION"]
[]
[]
[]
[]
[]
[]
[]
[]
[]
[]
[]
[]
[null,null,"Number of components for which the following instruction is made (number of components ordered per delivery = MDQ)",null,null,null,null,null,null,null,null,null,null,null,null,null,null,null,null,null,null,null,null,null,null,null,".."]
[]
[null,null,null,"PRIMARY PACKAGING","AGGREGATE PACKAGING","Unit","ADDITIONAL COMMENTS",null,null,null,null,null,null,null,null,null,null,null,null,null,null,null,null,null,null,null,"g",null,"Acceptable"]
[null,null,"Reel type (for example 100K)",null,null,null,null,null,null,null,null,null,null,null,null,null,null,null,null,null,null,null,null,null,null,null,"kg",null,"Unacceptable"]
[null,null,"Reel dimensions (W x H)",null,null,null,null,null,null,null,null,null,null,null,null,null,null,null,null,null,null,null,null,null,null,null,null,null,1,null,"None"]
[null,null,"Reel weight",null,null,null,null,null,null,null,null,null,null,null,null,null,null,null,null,null,null,null,null,null,null,null,"mm",null,2,null,"Pallet EUR 1 (800mm x 1200mm)","800mm x 1200mm"]
[null,null,"Weight of material",null,null,null,null,null,null,null,null,null,null,null,null,null,null,null,null,null,null,null,null,null,null,null,"cm",null,3,null,"Another type of pallet","1,200mm x 1,000mm"]
[null,null,"Weight of reel with material",{"$f":"D35+D36","v":0},null,null,null,null,null,null,null,null,null,null,null,null,null,null,null,null,null,null,null,null,null,null,"m",null,4,null,null,"1,000mm x 1,200mm"]
[null,null,"Is it possible to stack a reel? (if so, how many layers?)",null,null,null,null,null,null,null,null,null,null,null,null,null,null,null,null,null,null,null,null,null,null,null,null,null,5,null,"Lack of pallete","800mm x 600mm"]
[null,null,"Quantity of reels in/on the 1 aggregate packaging",null,null,null,null,null,null,null,null,null,null,null,null,null,null,null,null,null,null,null,null,null,null,null,null,null,6,null,null,"Another type of pallet"]
[null,null,"Type/size of aggregate packaging (pallet)"]
[null,null,"Weight of the pallet (obligatory, if applicable)",null,null,null,null,null,null,null,null,null,null,null,null,null,null,null,null,null,null,null,null,null,null,null,null,null,7,null,null,"Lack of pallete"]
[null,null,"Weight of all components and primary container(s) in/on the 1 aggregate packaging (with it)",null,{"$f":"(D37*E39)+E41","v":0},"kg",{"$f":"IF(E42>1000,\"MAXIMUM WEIGHT EXCEEDED\",\" \")","v":" "},null,null,null,null,null,null,null,null,null,null,null,null,null,null,null,null,null,null,null,null,null,8]
[null,null,"Is there any additional reel protection? (if so, which one?)",null,null,null,null,null,null,null,null,null,null,null,null,null,null,null,null,null,null,null,null,null,null,null,null,null,9]
[null,null,"Will additional packaging protection be used? (if so, which one?)"]
[null,null,"Height of the aggregate packaging including the primary container(s)",null,null,"cm",{"$f":"IF(E45>190,\"MAXIMUM HEIGHT EXCEEDED\",\" \")","v":" "},null,null,null,null,null,null,null,null,null,null,null,null,null,null,null,null,null,null,null,25,"Stretch foil"]
[null,null,null,null,null,null,null,null,null,null,null,null,null,null,null,null,null,null,null,null,null,null,null,null,null,null,28,"Strapping tape"]
[null,null,"SUPPLEMENTARY QUESTIONS",null,null,null,null,"ADDITIONAL COMMENTS",null,null,null,null,null,null,null,null,null,null,null,null,null,null,null,null,null,null,12,"Foil + Tape","Aggregate carton"]
[null,null,"Is material dangerous and need MSDS?",null,null,null,null,null,null,null,null,null,null,null,null,null,null,null,null,null,null,null,null,null,null,null,0,"Other type of security","Aggregate carton + Foil"]
[null,null,"Does material need special storage conditions?",null,null,null,null,null,null,null,null,null,null,null,null,null,null,null,null,null,null,null,null,null,null,null,"Other",null,"Aggregate carton + Foil + Tape"]
[null,null,"Does material have expiration date?",null,null,null,null,null,null,null,null,null,null,null,null,null,null,null,null,null,null,null,null,null,null,null,null,null,"Aggregate carton + Tape"]
[null,null,"Is primary container returnable? If so, which ones? "]
[]
[null,null,"Picture or drawing of the primary packaging","Picture or drawing of the supplementary packaging",null,null,null,"Picture or drawing of the aggregate packaging"]

{"sheet":"Przykład_Example","index":11,"n_rows":54,"n_cols":30,"rows_kept":54,"cut":false,"hidden":false,"merged":[[13,3,13,4],[13,7,13,13],[52,3,52,6],[52,7,52,14],[53,2,69,2],[53,3,69,6],[53,7,69,14],[32,7,39,14],[40,7,40,14],[41,7,43,14],[14,3,14,4],[14,7,14,13],[16,2,17,14],[29,2,29,4],[29,5,29,6],[31,7,31,14],[45,3,45,6],[45,7,45,14],[46,3,46,6],[46,7,49,14],[47,3,47,6],[48,3,48,6],[49,3,49,6],[8,3,8,4],[11,3,11,4],[11,7,11,13],[12,3,12,4],[12,7,12,13],[9,3,9,4],[10,3,10,4],[2,2,3,13],[5,3,5,4],[5,6,5,7],[6,2,7,2],[6,3,7,4],[6,6,6,7]]}
[]
[]
[null,null,"GENERAL INFORMATION"]
[]
[]
[null,null,"Supplier name","ABC  Magnetics",null,null,"Expiry date"]
[null,null,"Supplier address","20 W 34th St, New York, NY 10001, Stany Zjednoczone",null,null,"20.07.2020"]
[]
[null,null,"E-mail","abcmagnetics@gmail.com"]
[null,null,"Supplier part number",12341234]
[null,null,"Supplier part description ","Kabeloczko, RT, 10mm2/6mm",null,null,"Legend"]
[null,null,"Supplier's component EAN number",12341234,null,null,null,"Field to be completed obligatory "]
[null,null,"ERP part number SMA","01-xxx-xxxx.xx",null,null,null,"Field to be completed optionally"]
[null,null,"SMA part description","Kabeloczko, RT, 10mm2/6mm",null,null,null,"Field to be completed automatically/no need to complete"]
[null,null,"SMA component EAN number",43214321,null,null,null,"Information field"]
[]
[null,null,"PACKAGING INFORMATION"]
[]
[]
[]
[]
[]
[]
[]
[]
[]
[]
[]
[]
[null,null,"Number of components for which the following instruction is made (number of components ordered per delivery = MDQ)",null,null,"50 000"]
[null,null,null,null,null,null,null,null,null,null,null,null,null,null,null,null,null,null,null,null,null,null,null,null,null,null,"Acceptable","Cardboard","Cardboard"]
[null,null,null,"PRIMARY PACKAGING","SUPPLEMENTARY PACKAGING","AGGREGATE PACKAGING","Unit","ADDITIONAL COMMENTS",null,null,null,null,null,null,null,null,null,null,null,null,null,null,null,null,null,null,"Unacceptable","Plastic bag","Plastic bag"]
[null,null,"Weight of a single component ",2.2999999999999998,null,null,"g",null,null,null,null,null,null,null,null,null,null,null,null,null,null,null,null,null,null,null,1,"Chep box","Chep box"]
[null,null,"Components  qty. per 1 container",100,{"$f":"D34*D36","v":5000},{"$f":"E37*E34","v":50000},"pieces",null,null,null,null,null,null,null,null,null,null,null,null,null,null,null,null,null,null,null,2,"Other pack","Pallet EUR 1 (800mm x 1200mm)","800mm x 1200mm"]
[null,null,"Weight of 1 package with components",0.23,12,null,"kg",null,null,null,null,null,null,null,null,null,null,null,null,null,null,null,null,null,null,null,3,null,"Pallet EUR 2 (1,200mm x 1,000mm)","1,200mm x 1,000mm"]
[null,null,"Quantity of primary packaging in 1 supplementary packaging",50,null,null,null,null,null,null,null,null,null,null,null,null,null,null,null,null,null,null,null,null,null,null,4,null,"Pallet EUR 3 (1,000mm x 1,200mm)","1,000mm x 1,200mm"]
[null,null,"Quantity of supplementary packaging in/on the 1 aggregate packaging",null,10,null,null,null,null,null,null,null,null,null,null,null,null,null,null,null,null,null,null,null,null,null,5,null,"Pallet EUR 6 (800mm x 600mm)","800mm x 600mm"]
[null,null,"Type of packaging","Plastic bag","Cardboard","Pallet EUR 1 (800mm x 1200mm)",null,null,null,null,null,null,null,null,null,null,null,null,null,null,null,null,null,null,null,null,6,null,"Another type of pallet","Another type of pallet"]
[null,null,"Package dimensions (L x W x H)","13 x 13 x 0.5","20 x 29 x 16","80 x 120 x 14,4","cm",null,null,null,null,null,null,null,null,null,null,null,null,null,null,null,null,null,null,null,7,null,"Lack of pallete","Lack of pallete"]
[null,null,"Weight of the pallet",null,null,25,"kg",null,null,null,null,null,null,null,null,null,null,null,null,null,null,null,null,null,null,null,8]
[null,null,"Weight of all components and primary container(s) in/on the 1 aggregate packaging (including them)",null,null,{"$f":"(E35*E37)+F40","v":145},"kg",{"$f":"IF(F35>1000,\"MAXIMUM WEIGHT EXCEEDED\",\" \")","v":" "},null,null,null,null,null,null,null,null,null,null,null,null,null,null,null,null,null,null,9]
[null,null,"Is there any additional packaging protection (if so, which one)?",null,null,"Stretch foil"]
[null,null,"Is it possible to stack the packaging (if so, how many layers)?","Acceptable",3,"Unacceptable",null,null,null,null,null,null,null,null,null,null,null,null,null,null,null,null,null,null,null,null,"Stretch foil","g","Cardboard"]
[null,null,"Height of the aggregate packaging including the primary container(s) and supplementary packaging",null,null,62.4,"cm",null,null,null,null,null,null,null,null,null,null,null,null,null,null,null,null,null,null,null,"Strapping tape","kg","Plastic bag"]
[null,null,null,null,null,null,null,null,null,null,null,null,null,null,null,null,null,null,null,null,null,null,null,null,null,null,"Aggregate carton",null,"Other pack"]
[null,null,"SUPPLEMENTARY QUESTIONS",null,null,null,null,"ADDITIONAL COMMENTS",null,null,null,null,null,null,null,null,null,null,null,null,null,null,null,null,null,null,"Aggregate carton + Foil","cm"]
[null,null,"Is material dangerous and need MSDS?","No",null,null,null,null,null,null,null,null,null,null,null,null,null,null,null,null,null,null,null,null,null,null,"Aggregate carton + Foil + Tape","m",25]
[null,null,"Does material need special storage conditions?","No",null,null,null,null,null,null,null,null,null,null,null,null,null,null,null,null,null,null,null,null,null,null,"Foil + Tape",null,28]
[null,null,"Does material have expiration date?","No",null,null,null,null,null,null,null,null,null,null,null,null,null,null,null,null,null,null,null,null,null,null,"Aggregate carton + Tape",null,12]
[null,null,"Is primary container returnable? If so, which ones? ","No",null,null,null,null,null,null,null,null,null,null,null,null,null,null,null,null,null,null,null,null,null,null,"Other type of security",null,0]
[null,null,null,null,null,null,null,null,null,null,null,null,null,null,null,null,null,null,null,null,null,null,null,null,null,null,null,null,"Other  "]
[]
[null,null,"Picture or drawing of the primary container","Picture or drawing of the supplementary packaging",null,null,null,"Picture or drawing of the aggregate packaging"]
[null,null,null,null,null,null,null,"no sample photo, but it is required"]